fUSD/lending_fUSD_20250120
["ID","MTS","AMOUNT","RATE_DAILY","PERIOD"]
[349759113,1737414660376,-500.0,0.00021369,2]
[349759114,1737414660385,-500.0,0.00021369,2]
[349759115,1737414660394,-500.0,0.00021369,2]
[349759116,1737414660404,-500.0,0.00021369,2]
[349759117,1737414660413,-500.0,0.00021369,2]
[349759118,1737414660422,-500.0,0.00021369,2]
[349759119,1737414660431,-500.0,0.00021369,2]
[349759120,1737414660441,-565.61,0.00021369,2]
[349759121,1737414660451,-500.0,0.00021369,2]
[349759122,1737414660461,-500.0,0.00021369,2]
[349759123,1737414660471,-500.0,0.00021369,2]
[349759124,1737414660480,-255.789155,0.00021369,2]
[349759125,1737414660489,-500.0,0.00021369,2]
[349759126,1737414660499,-500.0,0.00021369,2]
[349759127,1737414660508,-574.2,0.00021369,2]
[349759128,1737414660518,-334.392464,0.00021369,2]
[349759129,1737414660531,-500.0,0.00021369,2]
[349759130,1737414660541,-500.0,0.00021369,2]
[349759131,1737414660551,-500.0,0.00021369,2]
[349759132,1737414660560,-500.0,0.00021369,2]
[349759133,1737414660571,-500.0,0.00021369,2]
[349759134,1737414660580,-500.0,0.00021369,2]
[349759135,1737414660590,-500.0,0.00021369,2]
[349759136,1737414660600,-500.0,0.00021369,2]
[349759137,1737414660610,-500.0,0.00021369,2]
[349759138,1737414660619,-500.0,0.00021369,2]
[349759139,1737414660630,-234.40756801,0.00021369,2]
[349759140,1737414660639,-500.0,0.00021369,2]
[349759141,1737414660648,-500.0,0.00021369,2]
[349759142,1737414660657,-500.0,0.00021369,2]
[349759143,1737414660666,-500.96,0.00021369,2]
[349759144,1737414660676,-500.0,0.00021369,2]
[349759145,1737414660684,-500.0,0.00021369,2]
[349759146,1737414660694,-249.53568461,0.00021369,2]
[349759147,1737414660704,-500.0,0.00021369,2]
[349759148,1737414660714,-500.0,0.00021369,2]
[349759149,1737414660723,-500.0,0.00021369,2]
[349759150,1737414660732,-500.0,0.00021369,2]
[349759151,1737414660741,-500.0,0.00021369,2]
[349759152,1737414660750,-519.52,0.00021369,2]
[349759153,1737414660759,-500.0,0.00021369,2]
[349759154,1737414660768,-500.0,0.00021369,2]
[349759155,1737414660777,-500.0,0.00021369,2]
[349759156,1737414660787,-500.0,0.00021369,2]
[349759157,1737414660797,-500.0,0.00021369,2]
[349759158,1737414660806,-500.0,0.00021369,2]
[349759159,1737414660815,-1536.87,0.00021369,2]
[349759160,1737414660824,-500.0,0.00021369,2]
[349759161,1737414660834,-500.0,0.00021369,2]
[349759162,1737414660843,-500.0,0.00021369,2]
[349759163,1737414660853,-500.0,0.00021369,2]
[349759164,1737414660862,-1393.31,0.00021369,2]
[349759165,1737414660871,-500.0,0.00021369,2]
[349759166,1737414660880,-500.0,0.00021369,2]
[349759167,1737414660890,-500.0,0.00021369,2]
[349759168,1737414660899,-500.0,0.00021369,2]
[349759169,1737414660908,-500.0,0.00021369,2]
[349759170,1737414660918,-500.0,0.00021369,2]
[349759171,1737414660927,-500.0,0.00021369,2]
[349759172,1737414660936,-1529.01,0.00021369,2]
[349759173,1737414660946,-401.86518603,0.00021369,2]
[349759174,1737414660955,-1478.72,0.00021369,2]
[349759175,1737414660965,-500.0,0.00021369,2]
[349759176,1737414660974,-500.0,0.00021369,2]
[349759177,1737414660983,-500.0,0.00021369,2]
[349759178,1737414660993,-832.48,0.00021369,2]
[349759179,1737414661002,-670.79,0.00021369,2]
[349759180,1737414661012,-598.74,0.00021369,2]
[349759181,1737414661022,-1030.25,0.00021369,2]
[349759182,1737414661031,-506.92,0.00021369,2]
[349759183,1737414661041,-1530.61,0.00021369,2]
[349759184,1737414661050,-576.89,0.00021369,2]
[349759185,1737414661060,-620.92,0.00021369,2]
[349759186,1737414661070,-686.52,0.00021369,2]
[349759187,1737414661079,-500.0,0.00021369,2]
[349759188,1737414661089,-500.0,0.00021369,2]
[349759189,1737414661098,-857.02,0.00021369,2]
[349759190,1737414661107,-500.0,0.00021369,2]
[349759191,1737414661117,-500.0,0.00021369,2]
[349759192,1737414661127,-646.84,0.00021369,2]
[349759193,1737414661138,-632.97,0.00021369,2]
[349759194,1737414661147,-500.0,0.00021369,2]
[349759195,1737414661157,-500.0,0.00021369,2]
[349759196,1737414661167,-1665.63,0.00021369,2]
[349759197,1737414661176,-570.17,0.00021369,2]
[349759198,1737414661186,-744.2,0.00021369,2]
[349759199,1737414661293,-750.3,0.00021369,2]
[349759200,1737414661303,-500.0,0.00021369,2]
[349759201,1737414661312,-1018.98,0.00021369,2]
[349759202,1737414661322,-976.51,0.00021369,2]
[349759203,1737414661331,-792.37,0.00021369,2]
[349759204,1737414661340,-1603.12,0.00021369,2]
[349759205,1737414661349,-796.06,0.00021369,2]
[349759206,1737414661358,-500.0,0.00021369,2]
[349759207,1737414661368,-1603.27,0.00021369,2]
[349759208,1737414661381,-1763.88,0.00021369,2]
[349759209,1737414661391,-698.99,0.00021369,2]
[349759210,1737414661401,-500.0,0.00021369,2]
[349759211,1737414661411,-500.0,0.00021369,2]
[349759212,1737414661421,-679.29,0.00021369,2]
[349759213,1737414661430,-1663.5,0.00021369,2]
[349759214,1737414661440,-780.06,0.00021369,2]
[349759215,1737414661449,-500.0,0.00021369,2]
[349759216,1737414661459,-500.0,0.00021369,2]
[349759217,1737414661468,-617.16,0.00021369,2]
[349759218,1737414661478,-2476.04,0.00021369,2]
[349759219,1737414661487,-154.34,0.00021369,2]
[349759220,1737414661497,-551.19,0.00021369,2]
[349759221,1737414661507,-3269.84,0.00021369,2]
[349759222,1737414661520,-1636.24,0.00021369,2]
[349759223,1737414661529,-1187.47,0.00021369,2]
[349759224,1737414661539,-500.0,0.00021369,2]
[349759225,1737414661548,-825.56,0.00021369,2]
[349759226,1737414661558,-2476.64,0.00021369,2]
[349759227,1737414661568,-1139.4,0.00021369,2]
[349759228,1737414661577,-830.8,0.00021369,2]
[349759229,1737414661587,-1178.79,0.00021369,2]
[349759230,1737414661596,-500.0,0.00021369,2]
[349759231,1737414661607,-518.89,0.00021369,2]
[349759232,1737414661617,-2274.58,0.00021369,2]
[349759233,1737414661627,-1876.38,0.00021369,2]
[349759234,1737414661636,-500.0,0.00021369,2]
[349759235,1737414661646,-500.0,0.00021369,2]
[349759236,1737414661655,-891.99,0.00021369,2]
[349759237,1737414661664,-500.0,0.00021369,2]
[349759238,1737414661673,-860.47,0.00021369,2]
[349759239,1737414661682,-1019.64,0.00021369,2]
[349759240,1737414661692,-2072.24,0.00021369,2]
[349759241,1737414661701,-1380.18,0.00021369,2]
[349759242,1737414661711,-500.0,0.00021369,2]
[349759243,1737414661720,-500.0,0.00021369,2]
[349759244,1737414661729,-552.72,0.00021369,2]
[349759245,1737414661738,-569.93,0.00021369,2]
[349759246,1737414661747,-835.44,0.00021369,2]
[349759247,1737414661756,-1403.83,0.00021369,2]
[349759248,1737414661765,-890.53,0.00021369,2]
[349759249,1737414661775,-509.99,0.00021369,2]
[349759250,1737414661784,-1752.0,0.00021369,2]
[349759251,1737414661794,-2907.81,0.00021369,2]
[349759252,1737414661804,-500.0,0.00021369,2]
[349759253,1737414661813,-998.81,0.00021369,2]
[349759254,1737414661823,-1097.25,0.00021369,2]
[349759255,1737414661832,-612.32,0.00021369,2]
[349759256,1737414661842,-164.1,0.00021369,2]
[349759257,1737414661851,-500.0,0.00021369,2]
[349759258,1737414661861,-565.08,0.00021369,2]
[349759259,1737414661872,-500.0,0.00021369,2]
[349759260,1737414661881,-599.08,0.00021369,2]
[349759261,1737414661890,-2063.22,0.00021369,2]
[349759262,1737414661899,-1287.56,0.00021369,2]
[349759263,1737414661908,-1714.26,0.00021369,2]
[349759264,1737414661917,-500.0,0.00021369,2]
[349759265,1737414661926,-500.0,0.00021369,2]
[349759266,1737414661936,-624.59,0.00021369,2]
[349759267,1737414661945,-872.02,0.00021369,2]
[349759268,1737414661954,-500.0,0.00021369,2]
[349759269,1737414661963,-1603.15,0.00021369,2]
[349759270,1737414661972,-500.0,0.00021369,2]
[349759271,1737414661981,-1444.7,0.00021369,2]
[349759272,1737414661991,-500.0,0.00021369,2]
[349759273,1737414662001,-1837.67,0.00021369,2]
[349759274,1737414662014,-500.0,0.00021369,2]
[349759275,1737414662023,-500.0,0.00021369,2]
[349759276,1737414662032,-500.0,0.00021369,2]
[349759277,1737414662041,-624.0,0.00021369,2]
[349759278,1737414662050,-600.72,0.00021369,2]
[349759279,1737414662059,-1545.64,0.00021369,2]
[349759280,1737414662068,-807.86,0.00021369,2]
[349759281,1737414662077,-500.0,0.00021369,2]
[349759282,1737414662086,-500.0,0.00021369,2]
[349759283,1737414662096,-1000.0,0.00021369,2]
[349759284,1737414662105,-517.43,0.00021369,2]
[349759285,1737414662114,-1042.81,0.00021369,2]
[349759286,1737414662123,-500.0,0.00021369,2]
[349759287,1737414662132,-500.0,0.00021369,2]
[349759288,1737414662142,-1290.23,0.00021369,2]
[349759289,1737414662152,-1839.16,0.00021369,2]
[349759290,1737414662162,-1177.1,0.00021369,2]
[349759291,1737414662171,-500.0,0.00021369,2]
[349759292,1737414662180,-500.0,0.00021369,2]
[349759293,1737414662189,-1103.41,0.00021369,2]
[349759294,1737414662198,-204.55255995,0.00021471,2]
[349759295,1737414662207,-500.0,0.00021473,2]
[349759296,1737414662216,-1765.0,0.000215,3]
[349759297,1737414662225,-455132.63481025,0.000215,4]
[349759298,1737414662234,-856.77,0.00021523,30]
[349759299,1737414662243,-732.4403852,0.0002156,2]
[349759300,1737414662252,-196.81984921,0.00021567,2]
[349759301,1737414662261,-204.55255995,0.00021614,3]
[349759302,1737414662270,-9172.44796977,0.00021617,2]
[349759303,1737414662279,-500.0,0.00021643,2]
[349759304,1737414662288,-500.0,0.00021643,2]
[349759305,1737414662298,-500.0,0.00021643,2]
[349759306,1737414662307,-500.0,0.00021643,2]
[349759307,1737414662315,-500.0,0.00021643,2]
[349759308,1737414662325,-500.0,0.00021643,2]
[349759309,1737414662334,-500.0,0.00021643,2]
[349759310,1737414662343,-500.0,0.00021643,2]
[349759311,1737414662352,-500.0,0.00021643,2]
[349759312,1737414662361,-500.0,0.00021643,2]
[349759313,1737414662371,-500.0,0.00021643,2]
[349759314,1737414662381,-500.0,0.00021643,2]
[349759315,1737414662390,-885.11,0.00021643,2]
[349759316,1737414662399,-500.0,0.00021643,2]
[349759317,1737414662408,-500.0,0.00021643,2]
[349759318,1737414662418,-549.9,0.00021643,2]
[349759319,1737414662427,-500.0,0.00021643,2]
[349759320,1737414662437,-500.0,0.00021643,2]
[349759321,1737414662446,-500.0,0.00021643,2]
[349759322,1737414662455,-500.0,0.00021643,2]
[349759323,1737414662464,-500.0,0.00021643,2]
[349759324,1737414662473,-565.61,0.00021643,2]
[349759325,1737414662483,-500.0,0.00021643,2]
[349759326,1737414662492,-255.789155,0.00021643,2]
[349759327,1737414662501,-500.0,0.00021643,2]
[349759328,1737414662511,-500.0,0.00021643,2]
[349759329,1737414662521,-574.2,0.00021643,2]
[349759330,1737414662533,-334.392464,0.00021643,2]
[349759331,1737414662542,-500.0,0.00021643,2]
[349759332,1737414662552,-291.89811375,0.00021643,2]
[349759333,1737414662563,-500.0,0.00021643,2]
[349759334,1737414662572,-500.0,0.00021643,2]
[349759335,1737414662582,-500.0,0.00021643,2]
[349759336,1737414662592,-500.0,0.00021643,2]
[349759337,1737414662603,-500.0,0.00021643,2]
[349759338,1737414662612,-500.0,0.00021643,2]
[349759339,1737414662622,-500.0,0.00021643,2]
[349759340,1737414662632,-500.0,0.00021643,2]
[349759341,1737414662641,-500.0,0.00021643,2]
[349759342,1737414662651,-500.0,0.00021643,2]
[349759343,1737414662660,-500.0,0.00021643,2]
[349759344,1737414662670,-500.96,0.00021643,2]
[349759345,1737414662679,-573.04,0.00021643,2]
[349759346,1737414662688,-500.0,0.00021643,2]
[349759347,1737414662698,-500.0,0.00021643,2]
[349759348,1737414662707,-500.0,0.00021643,2]
[349759349,1737414662716,-500.0,0.00021643,2]
[349759350,1737414662725,-500.0,0.00021643,2]
[349759351,1737414662735,-500.0,0.00021643,2]
[349759352,1737414662744,-519.52,0.00021643,2]
[349759353,1737414662753,-500.0,0.00021643,2]
[349759354,1737414662762,-500.0,0.00021643,2]
[349759355,1737414662771,-500.0,0.00021643,2]
[349759356,1737414662781,-500.0,0.00021643,2]
[349759357,1737414662791,-500.0,0.00021643,2]
[349759358,1737414662898,-500.0,0.00021643,2]
[349759359,1737414662907,-1536.87,0.00021643,2]
[349759360,1737414662917,-500.0,0.00021643,2]
[349759361,1737414662926,-500.0,0.00021643,2]
[349759362,1737414662936,-500.0,0.00021643,2]
[349759363,1737414662944,-500.0,0.00021643,2]
[349759364,1737414662954,-1393.31,0.00021643,2]
[349759365,1737414662963,-500.0,0.00021643,2]
[349759366,1737414662972,-500.0,0.00021643,2]
[349759367,1737414662982,-500.0,0.00021643,2]
[349759368,1737414662991,-500.0,0.00021643,2]
[349759369,1737414663000,-500.0,0.00021643,2]
[349759370,1737414663010,-500.0,0.00021643,2]
[349759371,1737414663020,-500.0,0.00021643,2]
[349759372,1737414663030,-1529.01,0.00021643,2]
[349759373,1737414663039,-1478.72,0.00021643,2]
[349759374,1737414663049,-500.0,0.00021643,2]
[349759375,1737414663059,-500.0,0.00021643,2]
[349759376,1737414663069,-500.0,0.00021643,2]
[349759377,1737414663078,-832.48,0.00021643,2]
[349759378,1737414663088,-670.79,0.00021643,2]
[349759379,1737414663098,-598.74,0.00021643,2]
[349759380,1737414663108,-1030.25,0.00021643,2]
[349759381,1737414663118,-506.92,0.00021643,2]
[349759382,1737414663131,-1530.61,0.00021643,2]
[349759383,1737414663142,-576.89,0.00021643,2]
[349759384,1737414663152,-686.52,0.00021643,2]
[349759385,1737414663162,-500.0,0.00021643,2]
[349759386,1737414663172,-500.0,0.00021643,2]
[349759387,1737414663181,-857.02,0.00021643,2]
[349759388,1737414663190,-500.0,0.00021643,2]
[349759389,1737414663200,-500.0,0.00021643,2]
[349759390,1737414663211,-646.84,0.00021643,2]
[349759391,1737414663220,-632.97,0.00021643,2]
[349759392,1737414663230,-500.0,0.00021643,2]
[349759393,1737414663240,-500.0,0.00021643,2]
[349759394,1737414663249,-1665.63,0.00021643,2]
[349759395,1737414663259,-570.17,0.00021643,2]
[349759396,1737414663268,-744.2,0.00021643,2]
[349759397,1737414663277,-750.3,0.00021643,2]
[349759398,1737414663286,-500.0,0.00021643,2]
[349759399,1737414663295,-1018.98,0.00021643,2]
[349759400,1737414663304,-976.51,0.00021643,2]
[349759401,1737414663313,-1603.12,0.00021643,2]
[349759402,1737414663322,-792.37,0.00021643,2]
[349759403,1737414663332,-796.06,0.00021643,2]
[349759404,1737414663341,-500.0,0.00021643,2]
[349759405,1737414663350,-1603.27,0.00021643,2]
[349759406,1737414663360,-1763.88,0.00021643,2]
[349759407,1737414663370,-698.99,0.00021643,2]
[349759408,1737414663383,-500.0,0.00021643,2]
[349759409,1737414663394,-500.0,0.00021643,2]
[349759410,1737414663404,-679.29,0.00021643,2]
[349759411,1737414663414,-1663.5,0.00021643,2]
[349759412,1737414663423,-780.06,0.00021643,2]
[349759413,1737414663433,-500.0,0.00021643,2]
[349759414,1737414663443,-500.0,0.00021643,2]
[349759415,1737414663452,-617.16,0.00021643,2]
[349759416,1737414663463,-2476.04,0.00021643,2]
[349759417,1737414663472,-551.19,0.00021643,2]
[349759418,1737414663482,-3269.84,0.00021643,2]
[349759419,1737414663491,-1636.24,0.00021643,2]
[349759420,1737414663501,-1187.47,0.00021643,2]
[349759421,1737414663510,-500.0,0.00021643,2]
[349759422,1737414663521,-825.56,0.00021643,2]
[349759423,1737414663533,-2476.64,0.00021643,2]
[349759424,1737414663543,-1139.4,0.00021643,2]
[349759425,1737414663552,-830.8,0.00021643,2]
[349759426,1737414663563,-1178.79,0.00021643,2]
[349759427,1737414663573,-500.0,0.00021643,2]
[349759428,1737414663583,-518.89,0.00021643,2]
[349759429,1737414663593,-2274.58,0.00021643,2]
[349759430,1737414663603,-1876.38,0.00021643,2]
[349759431,1737414663613,-367.04,0.00021643,2]
[349759432,1737414663622,-500.0,0.00021643,2]
[349759433,1737414663634,-891.99,0.00021643,2]
[349759434,1737414663644,-500.0,0.00021643,2]
[349759435,1737414663654,-860.47,0.00021643,2]
[349759436,1737414663664,-1019.64,0.00021643,2]
[349759437,1737414663673,-2072.24,0.00021643,2]
[349759438,1737414663683,-1380.18,0.00021643,2]
[349759439,1737414663693,-500.0,0.00021643,2]
[349759440,1737414663703,-552.72,0.00021643,2]
[349759441,1737414663713,-500.0,0.00021643,2]
[349759442,1737414663722,-569.93,0.00021643,2]
[349759443,1737414663731,-835.44,0.00021643,2]
[349759444,1737414663741,-1403.83,0.00021643,2]
[349759445,1737414663751,-890.53,0.00021643,2]
[349759446,1737414663760,-509.99,0.00021643,2]
[349759447,1737414663770,-1752.0,0.00021643,2]
[349759448,1737414663780,-2907.81,0.00021643,2]
[349759449,1737414663790,-500.0,0.00021643,2]
[349759450,1737414663799,-998.81,0.00021643,2]
[349759451,1737414663809,-1097.25,0.00021643,2]
[349759452,1737414663818,-612.32,0.00021643,2]
[349759453,1737414663828,-500.0,0.00021643,2]
[349759454,1737414663839,-565.08,0.00021643,2]
[349759455,1737414663848,-500.0,0.00021643,2]
[349759456,1737414663858,-599.08,0.00021643,2]
[349759457,1737414663867,-2063.22,0.00021643,2]
[349759458,1737414663878,-1287.56,0.00021643,2]
[349759459,1737414663887,-1714.26,0.00021643,2]
[349759460,1737414663897,-500.0,0.00021643,2]
[349759461,1737414663907,-277.2,0.00021643,2]
[349759462,1737414663917,-624.59,0.00021643,2]
[349759463,1737414663926,-872.02,0.00021643,2]
[349759464,1737414663936,-500.0,0.00021643,2]
[349759465,1737414663945,-1603.15,0.00021643,2]
[349759466,1737414663955,-500.0,0.00021643,2]
[349759467,1737414663965,-1444.7,0.00021643,2]
[349759468,1737414663974,-500.0,0.00021643,2]
[349759469,1737414663984,-1837.67,0.00021643,2]
[349759470,1737414663993,-404.63,0.00021643,2]
[349759471,1737414664003,-500.0,0.00021643,2]
[349759472,1737414664012,-500.0,0.00021643,2]
[349759473,1737414664021,-624.0,0.00021643,2]
[349759474,1737414664031,-600.72,0.00021643,2]
[349759475,1737414664040,-1545.64,0.00021643,2]
[349759476,1737414664049,-807.86,0.00021643,2]
[349759477,1737414664059,-500.0,0.00021643,2]
[349759478,1737414664068,-500.0,0.00021643,2]
[349759479,1737414664078,-172.76549857,0.00021643,2]
[349759480,1737414664087,-517.43,0.00021643,2]
[349759481,1737414664097,-1042.81,0.00021643,2]
[349759482,1737414664107,-500.0,0.00021643,2]
[349759483,1737414664116,-500.0,0.00021643,2]
[349759484,1737414664128,-1290.23,0.00021643,2]
[349759485,1737414664137,-1839.16,0.00021643,2]
[349759486,1737414664147,-1177.1,0.00021643,2]
[349759487,1737414664156,-500.0,0.00021643,2]
[349759488,1737414664166,-500.0,0.00021643,2]
[349759489,1737414664175,-1103.41,0.00021643,2]
[349759490,1737414664185,-846.0,0.0002167,2]
[349759491,1737414664195,-2125.6596321,0.00021671,2]
[349759492,1737414664204,-5171.03,0.00021685,7]
[349759493,1737414664213,-5171.03,0.00021685,7]
[349759494,1737414664223,-5171.03,0.00021685,7]
[349759495,1737414664232,-5171.03,0.00021685,7]
[349759496,1737414664241,-500.0,0.00021716,2]
[349759497,1737414664251,-150.0,0.00021719,2]
[349759498,1737414664260,-150.0,0.00021721,2]
[349759499,1737414664270,-1765.91521198,0.00021728,2]
[349759500,1737414664280,-1765.91521198,0.00021728,2]
[349759501,1737414664289,-200.0,0.00021729,2]
[349759502,1737414664299,-2483.88635391,0.00021731,2]
[349759503,1737414664403,-3342.21147918,0.00021734,2]
[349759504,1737414664414,-3254.33466809,0.00021735,2]
[349759505,1737414664423,-3254.33466809,0.00021737,2]
[349759506,1737414664433,-3254.33466809,0.00021738,2]
[349759507,1737414664442,-3342.21147918,0.00021742,2]
[349759508,1737414664451,-2483.88635391,0.00021745,2]
[349759509,1737414664460,-200.0,0.00021747,2]
[349759510,1737414664471,-150.0,0.00021749,2]
[349759511,1737414664480,-150.0,0.00021753,2]
[349759512,1737414664490,-1000.0,0.00021755,2]
[349759513,1737414664499,-204.55255995,0.00021757,3]
[349759514,1737414664509,-200.0,0.00021764,2]
[349759515,1737414664518,-24486.30570581,0.00021766,2]
[349759516,1737414664531,-24486.30570581,0.00021768,2]
[349759517,1737414664541,-200.0,0.00021768,2]
[349759518,1737414664550,-813.58366702,0.0002177,2]
[349759519,1737414664559,-200.0,0.00021775,2]
[349759520,1737414664570,-200.0,0.00021775,2]
[349759521,1737414664579,-1765.91521198,0.00021779,2]
[349759522,1737414664588,-200.0,0.0002178,2]
[349759523,1737414664598,-813.58366702,0.00021782,2]
[349759524,1737414664608,-1177.276808,0.00021784,2]
[349759525,1737414664617,-32811.57912043,0.00021787,2]
[349759526,1737414664628,-2483.88635391,0.00021788,2]
[349759527,1737414664638,-1177.276808,0.0002179,2]
[349759528,1737414664647,-813.58366702,0.0002179,2]
[349759529,1737414664657,-2483.88635391,0.00021792,2]
[349759530,1737414664666,-1765.91521198,0.00021794,2]
[349759531,1737414664675,-200.0,0.00021796,2]
[349759532,1737414664684,-835.30277608,0.00021799,2]
[349759533,1737414664694,-68781.65965263,0.000218,2]
[349759534,1737414664704,-1000.0,0.000218,2]
[349759535,1737414664713,-3254.33466809,0.000218,2]
[349759536,1737414664722,-1177.276808,0.00021803,2]
[349759537,1737414664732,-1177.276808,0.00021805,2]
[349759538,1737414664741,-32811.57912043,0.00021808,2]
[349759539,1737414664750,-200.0,0.00021808,2]
[349759540,1737414664759,-32811.57912043,0.00021812,2]
[349759541,1737414664769,-813.58366702,0.00021815,2]
[349759542,1737414664778,-500.0,0.00021817,2]
[349759543,1737414664787,-320.4691,0.00021817,2]
[349759544,1737414664797,-2508.723,0.00021817,2]
[349759545,1737414664806,-22576.6381,0.00021817,2]
[349759546,1737414664816,-1177.276808,0.00021818,2]
[349759547,1737414664825,-3342.21147918,0.00021821,2]
[349759548,1737414664834,-150.0,0.00021821,2]
[349759549,1737414664844,-500.0,0.00021824,2]
[349759550,1737414664853,-150.0,0.00021825,2]
[349759551,1737414664862,-150.0,0.00021827,2]
[349759552,1737414664871,-200.0,0.00021828,2]
[349759553,1737414664885,-150.0,0.00021832,2]
[349759554,1737414664894,-32811.57912043,0.00021838,2]
[349759555,1737414664903,-3254.33466809,0.0002184,2]
[349759556,1737414664912,-8500.0,0.00021846,2]
[349759557,1737414664921,-500.0,0.00021853,2]
[349759558,1737414664930,-1765.91521198,0.00021854,2]
[349759559,1737414664939,-24486.30570581,0.00021858,2]
[349759560,1737414664948,-813.58366702,0.0002186,2]
[349759561,1737414664957,-924.0,0.00021863,2]
[349759562,1737414664967,-150.0,0.00021872,2]
[349759563,1737414664976,-3342.21147918,0.00021876,2]
[349759564,1737414664985,-3342.21147918,0.00021877,2]
[349759565,1737414664994,-200.0,0.00021877,2]
[349759566,1737414665003,-2483.88635391,0.00021878,2]
[349759567,1737414665013,-32811.57912043,0.00021879,2]
[349759568,1737414665022,-20211.4654,0.0002188,2]
[349759569,1737414665030,-150.0,0.0002188,2]
[349759570,1737414665048,-150.0,0.00021884,2]
[349759571,1737414665066,-150.0,0.00021887,2]
[349759572,1737414665085,-24486.30570581,0.00021889,2]
[349759573,1737414665103,-2000.0,0.0002189,2]
[349759574,1737414665119,-500.0,0.0002189,2]
[349759575,1737414665141,-500.0,0.0002189,2]
[349759576,1737414665161,-500.0,0.0002189,2]
[349759577,1737414665180,-500.0,0.0002189,2]
[349759578,1737414665199,-500.0,0.0002189,2]
[349759579,1737414665216,-448.96,0.0002189,2]
[349759580,1737414665234,-554.1521,0.0002189,2]
[349759581,1737414665247,-500.0,0.0002189,2]
[349759582,1737414665265,-5800.0,0.00021892,2]
[349759583,1737414665279,-24486.30570581,0.00021896,2]
[349759584,1737414665296,-150.0,0.00021897,2]
[349759585,1737414665311,-2000.0,0.000219,2]
[349759586,1737414665327,-196.81984921,0.000219,2]
[349759587,1737414665342,-189.22168766,0.000219,2]
[349759588,1737414665358,-5800.0,0.000219,2]
[349759589,1737414665372,-1000.0,0.000219,2]
[349759590,1737414665389,-1000.0,0.000219,2]
[349759591,1737414665404,-9172.44796977,0.000219,2]
[349759592,1737414665419,-2014.53,0.000219,31]
[349759593,1737414665433,-2014.53,0.000219,31]
[349759594,1737414665448,-2014.53,0.000219,31]
[349759595,1737414665463,-2014.53,0.000219,31]
[349759596,1737414665478,-2014.53,0.000219,31]
[349759597,1737414665493,-2014.53,0.000219,31]
[349759598,1737414665508,-2014.53,0.000219,31]
[349759599,1737414665524,-2014.53,0.000219,31]
[349759600,1737414665539,-2014.53,0.000219,31]
[349759601,1737414665554,-2014.53,0.000219,31]
[349759602,1737414665569,-2014.53,0.000219,31]
[349759603,1737414665584,-2014.53,0.000219,31]
[349759604,1737414665599,-2014.53,0.000219,31]
[349759605,1737414665613,-2014.53,0.000219,31]
[349759606,1737414665628,-2014.53,0.000219,31]
[349759607,1737414665644,-2014.53,0.000219,31]
[349759608,1737414665658,-159.74225505,0.000219,4]
[349759609,1737414665672,-3058.73151649,0.000219,2]
[349759610,1737414665688,-204.55255995,0.000219,3]
[349759611,1737414665703,-5762.12192043,0.000219,2]
[349759612,1737414665717,-1765.0,0.000219,2]